bitfinex/quotes_BTCUSD_20250530
["timestamp","ask_amount","ask_price","bid_price","bid_amount"]
[1748640182137,0.18799617,104850.0,104840.0,0.57325615]
[1748640182773,0.21929617,104850.0,104840.0,0.57325615]
[1748640183397,0.18799617,104850.0,104840.0,0.57325615]
[1748640184184,0.21929617,104850.0,104840.0,0.57325615]
[1748640184394,0.18799617,104850.0,104840.0,0.57325615]
[1748640185016,0.21929617,104850.0,104840.0,0.57325615]
[1748640185869,0.18799617,104850.0,104840.0,0.57325615]
[1748640186490,0.21939617,104850.0,104840.0,0.57325615]
[1748640187291,0.18799617,104850.0,104840.0,0.57325615]
[1748640187948,0.22049617,104850.0,104840.0,0.57325615]
[1748640189004,0.20439617,104850.0,104840.0,0.57325615]
[1748640190809,0.22049617,104850.0,104840.0,0.57325615]
[1748640191017,0.20439617,104850.0,104840.0,0.57325615]
[1748640192165,0.22049617,104850.0,104840.0,0.57325615]
[1748640192343,0.20439617,104850.0,104840.0,0.57325615]
[1748640195097,0.22039617,104850.0,104840.0,0.57325615]
[1748640195552,0.20439617,104850.0,104840.0,0.57325615]
[1748640196388,0.22039617,104850.0,104840.0,0.57325615]
[1748640197071,0.20439617,104850.0,104840.0,0.57325615]
[1748640197963,0.20439617,104850.0,104840.0,0.5490651]
[1748640198391,0.22029617,104850.0,104840.0,0.5490651]
[1748640199064,0.22029617,104850.0,104840.0,0.57330723]
[1748640203551,0.22029617,104850.0,104840.0,0.02724213]
[1748640203787,0.22029617,104850.0,104840.0,0.57330723]
[1748640208105,0.22029617,104850.0,104840.0,0.5490651]
[1748640209029,0.20389617,104850.0,104840.0,0.5490651]
[1748640209541,0.20389617,104850.0,104840.0,0.57330756]
[1748640210900,0.20389617,104850.0,104840.0,1.33537779]
[1748640210901,0.18799617,104850.0,104840.0,1.33537779]
[1748640211123,0.18799617,104850.0,104840.0,1.35137779]
[1748640211561,0.18799617,104850.0,104840.0,1.326688]
[1748640212032,0.14699617,104850.0,104840.0,1.323688]
[1748640212259,0.14699617,104850.0,104840.0,1.329688]
[1748640212486,0.14699617,104850.0,104840.0,1.13892112]
[1748640213137,0.14699617,104850.0,104840.0,1.331688]
[1748640215017,0.14699617,104850.0,104840.0,1.35076441]
[1748640218947,0.10599617,104850.0,104840.0,1.35076441]
[1748640219403,0.10599617,104850.0,104840.0,1.36589987]
[1748640222118,0.10599617,104850.0,104840.0,1.35076441]
[1748640222330,0.0191233,104850.0,104840.0,1.3698399]
[1748640222549,0.20987198,104850.0,104840.0,1.3698399]
[1748640223445,0.21940895,104850.0,104840.0,1.3698399]
[1748640223872,0.22894638,104850.0,104840.0,1.36030239]
[1748640224287,0.21940941,104850.0,104840.0,1.36030239]
[1748640224749,0.20987216,104850.0,104840.0,1.36030239]
[1748640228588,0.20033482,104850.0,104840.0,1.589068]
[1748640228806,0.19079739,104850.0,104840.0,1.61400625]
[1748640229243,0.20033464,104850.0,104840.0,1.70986055]
[1748640229684,0.20033464,104850.0,104840.0,1.71939871]
[1748640230354,0.19079739,104850.0,104840.0,1.70986055]
[1748640236799,0.19079739,104850.0,104840.0,1.7003223]
[1748640238337,0.19079739,104850.0,104840.0,1.72606055]
[1748640238773,0.19079739,104850.0,104840.0,1.52575542]
[1748640238996,0.19079739,104850.0,104840.0,1.53517163]
[1748640239215,0.19079739,104850.0,104840.0,0.44300143]
[1748640239462,0.19079739,104850.0,104840.0,1.53513163]
[1748640239919,0.19079739,104850.0,104840.0,1.72589851]
[1748640240163,0.19079739,104850.0,104840.0,1.73543685]
[1748640241100,0.1679179,104850.0,104840.0,1.73543685]
[1748640243127,0.17745533,104850.0,104840.0,1.74497492]
[1748640244281,0.17745533,104850.0,104840.0,1.73543685]
[1748640244499,0.17745533,104850.0,104840.0,1.7449751]
[1748640245554,0.17745533,104850.0,104840.0,1.75451326]
[1748640247563,0.17745533,104850.0,104840.0,1.76405133]
[1748640247942,0.17745533,104850.0,104840.0,1.77358931]
[1748640248272,0.18699249,104850.0,104840.0,1.77358885]
[1748640250134,0.18699249,104850.0,104840.0,1.77358839]
[1748640250353,0.18699249,104850.0,104840.0,1.72877474]
[1748640254546,0.18699249,104850.0,104840.0,1.73831272]
[1748640254952,0.18699249,104850.0,104840.0,1.7478506]
[1748640256585,0.16411359,104850.0,104840.0,1.7478506]
[1748640259649,0.02861129,104850.0,104840.0,1.7573883]
[1748640259882,0.22889731,104850.0,104840.0,1.7478506]
[1748640260071,0.03814863,104850.0,104840.0,1.75738793]
[1748640260509,0.02861129,104850.0,104840.0,1.75738793]
[1748640260724,0.02861129,104850.0,104840.0,1.74781023]
[1748640260946,0.03814863,104850.0,104840.0,1.75734793]
[1748640262714,0.22889731,104850.0,104840.0,1.73827244]
[1748640263161,0.22889731,104850.0,104840.0,1.72873456]
[1748640263598,0.22889731,104850.0,104840.0,1.73827244]
[1748640264805,0.21936043,104850.0,104840.0,1.72873456]
[1748640265031,0.21936043,104850.0,104840.0,1.71333456]
[1748640266113,0.24996043,104850.0,104840.0,1.71333456]
[1748640268313,0.24996043,104850.0,104840.0,1.72287244]
[1748640269259,0.24996043,104850.0,104840.0,1.71333456]
[1748640269887,0.21936043,104850.0,104840.0,1.71333456]
[1748640270549,0.25026043,104850.0,104840.0,1.71333456]
[1748640270763,0.21936043,104850.0,104840.0,1.71333456]
[1748640271424,0.25026043,104850.0,104840.0,1.71333456]
[1748640271630,0.25026043,104850.0,104840.0,1.70424364]
[1748640272050,0.21936043,104850.0,104840.0,1.70424364]
[1748640272703,0.19648314,104850.0,104840.0,1.42433435]
[1748640272908,0.19648314,104850.0,104840.0,1.71329435]
[1748640273136,0.22768314,104850.0,104840.0,1.71329435]
[1748640273344,0.2372203,104850.0,104840.0,1.71329435]
[1748640276318,0.2372203,104850.0,104840.0,0.62116415]
[1748640276522,0.2372203,104850.0,104840.0,1.71329471]
[1748640276867,0.2372203,104850.0,104840.0,1.72283269]
[1748640278062,0.24102318,104850.0,104840.0,1.72283269]
[1748640278946,0.24102318,104850.0,104840.0,1.71329471]
[1748640279214,0.24102318,104850.0,104840.0,1.72283269]
[1748640281596,0.24102318,104850.0,104840.0,1.71374198]
[1748640283705,0.24102318,104850.0,104840.0,1.72283402]
[1748640283920,0.24102318,104850.0,104840.0,1.71374198]
[1748640285834,0.24102318,104850.0,104840.0,1.71370198]
[1748640287622,0.24102318,104850.0,104840.0,1.80166198]
[1748640288733,0.24102318,104850.0,104840.0,1.80044314]
[1748640292948,0.05981129,104850.0,104840.0,1.80998102]
[1748640293148,0.05981129,104850.0,104840.0,1.80056481]
[1748640294262,0.2600974,104850.0,104840.0,1.80056481]
[1748640294575,0.23721883,104850.0,104840.0,1.80965875]
[1748640298428,0.25331883,104850.0,104840.0,1.80965875]
[1748640298631,0.2449974,104850.0,104840.0,1.80965875]
[1748640299557,0.04471129,104850.0,104840.0,1.80965875]
[1748640299783,0.06924863,104850.0,104840.0,1.81919654]
[1748640300120,0.25999731,104850.0,104840.0,1.81919654]
[1748640300337,0.05971129,104850.0,104840.0,1.8191959]
[1748640300577,0.0311,104850.0,104840.0,2.70465158]
[1748640300797,0.0501734,104850.0,104840.0,2.70465158]
[1748640301033,0.0501734,104850.0,104840.0,2.1878079]
[1748640301257,0.25046024,104850.0,104840.0,1.05866546]
[1748640301492,0.25046024,104850.0,104840.0,1.06820371]
[1748640301730,0.25046024,104850.0,104840.0,1.80308996]
[1748640301946,0.21614492,104850.0,104840.0,2.15881612]
[1748640302166,0.20660795,104850.0,104840.0,1.06190476]
[1748640302387,0.20660795,104850.0,104840.0,0.03940708]
[1748640302602,0.20028602,104850.0,104840.0,0.02009394]
[1748640302816,0.20028602,104850.0,104840.0,0.56554962]
[1748640304110,0.15928602,104850.0,104840.0,0.56554962]
[1748640304807,0.15928602,104850.0,104840.0,0.58070448]
[1748640305024,0.29677766,104850.0,104840.0,0.0030488]
[1748640305243,0.21940174,104830.0,104820.0,0.93791607]
[1748640305468,0.20986313,104830.0,104820.0,2.03836794]
[1748640306116,0.23886313,104830.0,104820.0,2.03836794]
[1748640306329,0.23886313,104830.0,104820.0,2.04436794]
[1748640306542,0.23386313,104830.0,104820.0,2.05390801]
[1748640307167,0.23386313,104830.0,104820.0,2.03159487]
[1748640308213,0.23386313,104830.0,104820.0,2.04650016]
[1748640308849,0.23386313,104830.0,104820.0,2.05604014]
[1748640311225,0.23386313,104830.0,104820.0,1.74808009]
[1748640311440,0.23386313,104830.0,104820.0,2.04654016]
[1748640311644,0.23386313,104830.0,104820.0,1.70654016]
[1748640311857,0.19286313,104830.0,104820.0,2.04054016]
[1748640312276,0.21194118,104830.0,104820.0,0.65116873]
[1748640312489,0.21194118,104830.0,104820.0,2.03254016]
[1748640312668,0.21194118,104830.0,104820.0,2.03654016]
[1748640313500,0.21194118,104830.0,104820.0,1.49108448]
[1748640313791,0.21194118,104830.0,104820.0,1.49808448]
[1748640314400,0.21194118,104830.0,104820.0,1.48854441]
[1748640315107,0.21194118,104830.0,104820.0,1.14854441]
[1748640315312,0.21194118,104830.0,104820.0,1.48854441]
[1748640315750,0.21194118,104830.0,104820.0,1.47363912]
[1748640316498,0.21194118,104830.0,104820.0,1.48317919]
[1748640317778,0.20240229,104830.0,104820.0,1.28237881]
[1748640317986,0.20240229,104830.0,104820.0,0.99345881]
[1748640318190,0.20240229,104830.0,104820.0,1.28237881]
[1748640318804,0.20240229,104830.0,104820.0,1.29728457]
[1748640319542,0.16140229,104830.0,104820.0,1.29728457]
[1748640319755,0.16140229,104830.0,104820.0,0.92044457]
[1748640319969,0.16140229,104830.0,104820.0,1.20936457]
[1748640320384,0.16140229,104830.0,104820.0,0.92044457]
[1748640320598,0.16140229,104830.0,104820.0,1.20936457]
[1748640321103,0.16140229,104830.0,104820.0,0.37498889]
[1748640321259,0.16140229,104830.0,104820.0,0.66390889]
[1748640321470,0.16140229,104830.0,104820.0,1.20936457]
[1748640322013,0.16140229,104830.0,104820.0,0.66390889]
[1748640322330,0.16140229,104830.0,104820.0,0.86936457]
[1748640322771,0.16140229,104830.0,104820.0,0.03498889]
[1748640325812,0.16140229,104830.0,104820.0,0.02008313]
[1748640327208,0.12040229,104830.0,104820.0,0.02008313]
[1748640328051,0.12040229,104830.0,104820.0,0.03143023]
[1748640328260,0.10500229,104830.0,104820.0,0.03143023]
[1748640328882,0.12050229,104830.0,104820.0,0.03143023]
[1748640329943,0.12050229,104830.0,104820.0,0.02008313]
[1748640333900,0.09140229,104830.0,104820.0,0.02008313]
[1748640334116,0.18725659,104830.0,104820.0,0.02008313]
[1748640334336,0.21775659,104830.0,104820.0,0.02008313]
[1748640334552,0.21775659,104830.0,104820.0,0.00908313]
[1748640334737,0.18725659,104830.0,104820.0,0.01108313]
[1748640335001,0.14625659,104830.0,104820.0,0.01608313]
[1748640335204,0.14625659,104830.0,104820.0,0.007]
[1748640335452,0.17675659,104830.0,104820.0,0.007]
[1748640335892,0.19129744,104830.0,104820.0,0.007]
[1748640336352,0.19129744,104830.0,104820.0,0.02745158]
[1748640336996,0.19129744,104830.0,104820.0,0.02545158]
[1748640337225,0.19129744,104830.0,104820.0,0.02145158]
[1748640337709,0.19129744,104830.0,104820.0,0.02545158]
[1748640338579,0.19129744,104830.0,104820.0,0.01408959]
[1748640339020,0.56745552,104830.0,104820.0,0.01408959]
[1748640339665,0.56817744,104830.0,104820.0,0.01408959]
[1748640342438,0.56817744,104830.0,104820.0,0.005]
[1748640342656,0.52717744,104830.0,104820.0,0.005]
[1748640342869,0.71796252,104830.0,104820.0,0.005]
[1748640343522,0.71796252,104830.0,104820.0,0.004]
[1748640344252,0.20990298,104810.0,104800.0,0.03535112]
[1748640344477,0.20990298,104810.0,104800.0,0.02627038]
[1748640344682,0.22520298,104810.0,104800.0,0.02627038]
[1748640344889,0.20990298,104810.0,104800.0,0.02627038]
[1748640345523,0.20990298,104810.0,104800.0,0.02631909]
[1748640345728,0.20990298,104810.0,104800.0,0.0114107]
[1748640345929,0.20990298,104810.0,104800.0,0.02048873]
[1748640346139,0.20990298,104810.0,104800.0,0.02748873]
[1748640348844,0.20990298,104810.0,104800.0,0.57294441]
[1748640349413,0.20990298,104810.0,104800.0,0.02748873]
[1748640350115,0.20990298,104810.0,104800.0,0.04358873]
[1748640350535,0.16890298,104810.0,104800.0,0.04358873]
[1748640350743,0.16890298,104810.0,104800.0,0.06008873]
[1748640351369,0.18798448,104810.0,104800.0,0.06008873]
[1748640351575,0.18798448,104810.0,104800.0,0.02748873]
[1748640352850,0.18798448,104810.0,104800.0,0.04358873]
[1748640353282,0.18798448,104810.0,104800.0,0.06008873]
[1748640355861,0.18798448,104810.0,104800.0,0.07523805]
[1748640356278,0.18798448,104810.0,104800.0,0.04263805]
[1748640356484,0.18798448,104810.0,104800.0,0.02748873]
[1748640356912,0.15578448,104810.0,104800.0,0.06008873]
[1748640357320,0.12358448,104810.0,104800.0,0.06008873]
[1748640357530,0.09138448,104810.0,104800.0,0.06008873]
[1748640357733,0.0190815,104810.0,104800.0,0.02748873]
[1748640357936,0.00954061,104810.0,104800.0,0.02748873]
[1748640358147,0.15936209,104810.0,104800.0,0.02748873]
[1748640359310,0.17844359,104810.0,104800.0,0.02748873]
[1748640364383,0.17844359,104810.0,104800.0,0.03637949]
[1748640364886,0.17844359,104810.0,104800.0,0.02748873]
[1748640365107,0.17844359,104810.0,104800.0,0.04304999]
[1748640365514,0.17844359,104810.0,104800.0,0.02748873]
[1748640365648,0.17844359,104810.0,104800.0,0.04305227]
[1748640365854,0.17844359,104810.0,104800.0,0.04305239]
[1748640366080,0.17844359,104810.0,104800.0,0.04305249]
[1748640366281,0.17844359,104810.0,104800.0,0.0430525]
[1748640366477,0.17844359,104810.0,104800.0,0.02748873]
[1748640366738,0.13744359,104810.0,104800.0,0.04305554]
[1748640367164,0.13744359,104810.0,104800.0,0.03416056]
[1748640367365,0.13744359,104810.0,104800.0,0.02748873]
[1748640368019,0.23329789,104810.0,104800.0,0.03606081]
[1748640368474,0.24783874,104810.0,104800.0,0.04106081]
[1748640368892,0.24783874,104810.0,104800.0,0.0410621]
[1748640369083,0.24783874,104810.0,104800.0,0.04106315]
[1748640369296,0.24783874,104810.0,104800.0,0.04106348]
[1748640369920,0.32948347,104810.0,104800.0,0.02970149]
[1748640370528,0.32948347,104810.0,104800.0,0.02969934]
[1748640370734,0.32948347,104810.0,104800.0,0.02969647]
[1748640371155,0.24783874,104810.0,104800.0,0.02969647]
[1748640371375,0.24783874,104810.0,104800.0,0.0207976]
[1748640371586,0.24783874,104810.0,104800.0,0.02969173]
[1748640372657,0.24783874,104810.0,104800.0,0.02969063]
[1748640373070,0.24783874,104810.0,104800.0,0.02869063]
[1748640373715,0.24783874,104810.0,104800.0,0.02868963]
[1748640373716,0.53683874,104810.0,104800.0,0.02868963]
[1748640373942,0.53683874,104810.0,104800.0,0.0286891]
[1748640374150,0.53683874,104810.0,104800.0,0.0246891]
[1748640374365,0.53683874,104810.0,104800.0,0.02468816]
[1748640374581,0.53683874,104810.0,104800.0,0.02668816]
[1748640375600,0.53683874,104810.0,104800.0,0.02668709]
[1748640376765,0.53683874,104810.0,104800.0,0.02668623]
[1748640376977,0.53683874,104810.0,104800.0,0.01112674]
[1748640377196,0.53683874,104810.0,104800.0,0.02668417]
[1748640377399,0.53683874,104810.0,104800.0,0.02668418]
[1748640378410,0.62479874,104810.0,104800.0,0.02001671]
[1748640378831,0.62479874,104810.0,104800.0,0.01112674]
[1748640389244,0.62479874,104810.0,104800.0,0.00204871]
[1748640390300,0.62479874,104810.0,104800.0,0.01115586]
[1748640390962,0.61025789,104810.0,104800.0,0.01115586]
[1748640391174,0.7075545,104810.0,104800.0,0.01115586]
[1748640394560,0.69301365,104810.0,104800.0,0.01115586]
[1748640394764,0.7075545,104810.0,104800.0,0.01115586]
[1748640394978,0.62479874,104810.0,104800.0,0.01115586]
[1748640412655,0.96479874,104810.0,104800.0,0.01115586]
[1748640416076,0.62479874,104810.0,104800.0,0.01115586]
[1748640422732,0.62479874,104810.0,104800.0,0.01782305]
[1748640423210,0.62479874,104810.0,104800.0,0.01784163]
[1748640423419,0.62479874,104810.0,104800.0,0.03563562]
[1748640423420,0.7124842,104810.0,104800.0,0.03563562]
[1748640423627,0.7276842,104810.0,104800.0,0.0356356]
[1748640423839,0.7276842,104810.0,104800.0,0.03567029]
[1748640424486,0.7276842,104810.0,104800.0,0.0356704]
[1748640425090,0.7276842,104810.0,104800.0,0.0178418]
[1748640425302,0.63999874,104810.0,104800.0,0.03567107]
[1748640425502,0.65539874,104810.0,104800.0,0.03567109]
[1748640425931,0.62479874,104810.0,104800.0,0.03567122]
[1748640426575,0.63999874,104810.0,104800.0,0.03567122]
[1748640426777,0.62479874,104810.0,104800.0,0.03567136]
[1748640427181,0.63999874,104810.0,104800.0,0.03567136]
[1748640427385,0.63999874,104810.0,104800.0,0.0356716]
[1748640427791,0.65539874,104810.0,104800.0,0.02898549]
[1748640427962,0.65539874,104810.0,104800.0,0.01784203]
[1748640428174,0.65539874,104810.0,104800.0,0.03567182]
[1748640429137,0.65539874,104810.0,104800.0,0.03567209]
[1748640429552,0.65539874,104810.0,104800.0,0.03567215]
[1748640429766,0.65539874,104810.0,104800.0,0.03567233]
[1748640430617,0.63999874,104810.0,104800.0,0.03567233]
[1748640430887,0.65539874,104810.0,104800.0,0.03567233]
[1748640431091,0.62479874,104810.0,104800.0,0.01784217]
[1748640431332,0.62479874,104810.0,104800.0,0.03567251]
[1748640431543,0.64129874,104810.0,104800.0,0.03567251]
[1748640431749,0.65669874,104810.0,104800.0,0.02898632]
[1748640431957,0.65669874,104810.0,104800.0,0.03567274]
[1748640433013,0.65669874,104810.0,104800.0,0.03567279]
[1748640433226,0.65669874,104810.0,104800.0,0.02898636]
[1748640433453,0.65669874,104810.0,104800.0,0.03567279]
[1748640435540,0.65669874,104810.0,104800.0,0.02898635]
[1748640435770,0.65669874,104810.0,104800.0,0.03567278]
[1748640435993,0.65669874,104810.0,104800.0,0.03567272]
[1748640436828,0.65669874,104810.0,104800.0,0.03567283]
[1748640437037,0.65669874,104810.0,104800.0,0.01115586]
[1748640438378,0.65669874,104810.0,104800.0,0.02898645]
[1748640438812,1.0843142,104810.0,104800.0,0.02898645]
[1748640439011,1.0843142,104810.0,104800.0,0.0356745]
[1748640439241,1.0843142,104810.0,104800.0,0.01784262]
[1748640439442,1.0843142,104810.0,104800.0,0.03567419]
[1748640439648,0.99669874,104810.0,104800.0,0.03567468]
[1748640439852,0.99669874,104810.0,104800.0,0.03567476]
[1748640440007,0.99669874,104810.0,104800.0,0.02453017]
[1748640440229,1.02533674,104810.0,104800.0,0.02898877]
[1748640440429,1.02533674,104810.0,104800.0,0.03567626]
[1748640440727,1.02623674,104810.0,104800.0,0.01115586]
[1748640440896,1.08594796,104810.0,104800.0,0.02898915]
[1748640441113,1.08594796,104810.0,104800.0,0.01784366]
[1748640441343,1.08594796,104810.0,104800.0,0.01784369]
[1748640441544,1.11874796,104810.0,104800.0,0.02899007]
[1748640441717,1.11874796,104810.0,104800.0,0.03567795]
[1748640444127,1.08594796,104810.0,104800.0,0.01115586]
[1748640444347,1.11734796,104810.0,104800.0,0.01115586]
[1748640444630,1.08594796,104810.0,104800.0,0.01115586]
[1748640445275,1.08594796,104810.0,104800.0,0.00204871]
[1748640447166,0.99343674,104810.0,104800.0,0.00204871]
[1748640457628,0.70443674,104810.0,104800.0,0.00204871]
[1748640457829,0.99343674,104810.0,104800.0,0.00204871]
[1748640460310,0.99543674,104810.0,104800.0,4.871e-05]
[1748640460751,0.99543674,104810.0,104800.0,0.00104871]
[1748640461618,1.08794796,104810.0,104800.0,0.00104871]
[1748640469818,0.71098796,104810.0,104800.0,0.00104871]
[1748640470039,1.08790796,104810.0,104800.0,0.00104871]
[1748640471620,1.13790796,104810.0,104800.0,0.00104871]
[1748640472914,1.08790796,104810.0,104800.0,0.00104871]
[1748640473128,1.13790796,104810.0,104800.0,0.00104871]
[1748640473322,1.16496207,104810.0,104800.0,0.00104871]
[1748640473764,1.11496207,104810.0,104800.0,0.00104871]
[1748640473993,1.16496207,104810.0,104800.0,0.00104871]
[1748640474454,1.14314113,104810.0,104800.0,4.871e-05]
[1748640474760,1.14714113,104810.0,104800.0,4.871e-05]
[1748640475697,1.14914113,104810.0,104800.0,4.871e-05]
[1748640475894,0.77222113,104810.0,104800.0,4.871e-05]
[1748640476145,1.14918113,104810.0,104800.0,4.871e-05]
[1748640476765,1.09918113,104810.0,104800.0,4.871e-05]
[1748640476974,1.14918113,104810.0,104800.0,4.871e-05]
[1748640478017,1.09918113,104810.0,104800.0,4.871e-05]
[1748640478250,1.14918113,104810.0,104800.0,4.871e-05]
[1748640478455,0.86018113,104810.0,104800.0,4.871e-05]
[1748640478665,1.14918113,104810.0,104800.0,4.871e-05]
[1748640481194,0.03362782,104780.0,104770.0,0.07660267]
[1748640481409,0.89817824,104780.0,104770.0,0.07665141]
[1748640482260,0.89817824,104780.0,104770.0,0.08577626]
[1748640482473,0.89817824,104780.0,104770.0,0.08777626]
[1748640483041,1.23817824,104780.0,104770.0,0.08777626]
[1748640484335,1.33068946,104780.0,104770.0,0.01117359]
[1748640484964,1.23817824,104780.0,104770.0,0.01117359]
[1748640487674,0.89817824,104780.0,104770.0,0.01117359]
[1748640488464,1.18717824,104780.0,104770.0,0.01117359]
[1748640491254,1.03727824,104780.0,104770.0,0.01117359]
[1748640491462,0.69727824,104780.0,104770.0,0.01117359]
[1748640491676,0.78978946,104780.0,104770.0,0.01117359]
[1748640493213,0.78978946,104780.0,104770.0,0.00204874]
[1748640493850,0.50078946,104780.0,104770.0,0.00204874]
[1748640494099,0.69727824,104780.0,104770.0,0.00204874]
[1748640494521,0.69727824,104780.0,104770.0,0.01118094]
[1748640495047,0.40827824,104780.0,104770.0,0.01118094]
[1748640495263,0.69727824,104780.0,104770.0,0.01118094]
[1748640495485,0.32035824,104780.0,104770.0,0.01118094]
[1748640495702,0.20996309,104780.0,104770.0,0.01118094]
[1748640496335,0.20996309,104780.0,104770.0,0.02256488]
[1748640496544,0.20996309,104780.0,104770.0,0.03774347]
[1748640496954,0.20996309,104780.0,104770.0,0.02635953]
[1748640497366,0.20996309,104780.0,104770.0,0.0259259]
[1748640498297,0.20996309,104780.0,104770.0,0.21682023]
[1748640498512,0.2195068,104780.0,104770.0,0.2359092]
[1748640498724,0.2195068,104780.0,104770.0,0.24545355]
[1748640499798,0.2195068,104780.0,104770.0,0.59499772]
[1748640501263,0.2195068,104780.0,104770.0,0.57027496]
[1748640502210,0.2195068,104780.0,104770.0,0.57981922]
[1748640502838,0.2195068,104780.0,104770.0,0.59499887]
[1748640504454,0.2195068,104780.0,104770.0,0.56636591]
[1748640504899,0.2195068,104780.0,104770.0,0.57303778]
[1748640505076,0.20996345,104780.0,104770.0,0.55118626]
[1748640505310,0.20996345,104780.0,104770.0,0.55785813]
[1748640505837,0.20996345,104780.0,104770.0,0.55785501]
[1748640506262,0.20996345,104780.0,104770.0,0.57302146]
[1748640506444,0.20996345,104780.0,104770.0,0.56635271]
[1748640506972,0.20996345,104780.0,104770.0,0.573019]
[1748640507256,0.20996345,104780.0,104770.0,0.56347438]
[1748640507460,0.20041983,104780.0,104770.0,0.56347438]
[1748640508211,0.20041983,104780.0,104770.0,0.56347242]
[1748640508442,0.20041983,104780.0,104770.0,0.56347224]
[1748640508659,0.20041983,104780.0,104770.0,0.57301695]
[1748640509785,0.20041983,104780.0,104770.0,0.573015]
[1748640509994,0.20041983,104780.0,104770.0,0.57301509]
[1748640510205,0.20041983,104780.0,104770.0,0.38212113]
[1748640510621,0.20041983,104780.0,104770.0,0.38212092]
[1748640510826,0.20041983,104780.0,104770.0,0.37545847]
[1748640511035,0.20041983,104780.0,104770.0,0.38212039]
[1748640511670,0.20041983,104780.0,104770.0,0.38212007]
[1748640511904,0.20041983,104780.0,104770.0,0.38212006]
[1748640512116,0.20041983,104780.0,104770.0,0.37545847]
[1748640512346,0.20041983,104780.0,104770.0,0.38212006]
[1748640512557,0.20041983,104780.0,104770.0,0.38211958]
[1748640512771,0.20041983,104780.0,104770.0,0.57301391]
[1748640513321,0.20041983,104780.0,104770.0,0.37257487]
[1748640513527,0.20041983,104780.0,104770.0,0.37257429]
[1748640515055,0.20041983,104780.0,104770.0,0.36591376]
[1748640515665,0.20041983,104780.0,104770.0,0.37257357]
[1748640515883,0.20041983,104780.0,104770.0,0.37257375]
[1748640516102,0.20041983,104780.0,104770.0,0.36591376]
[1748640516304,0.20041983,104780.0,104770.0,0.37257365]
[1748640517082,0.20041983,104780.0,104770.0,0.37257341]
[1748640517502,0.20041983,104780.0,104770.0,0.36591376]
[1748640517714,0.20041983,104780.0,104770.0,0.37257293]
[1748640519045,0.20041983,104780.0,104770.0,0.37257316]
[1748640519277,0.20041983,104780.0,104770.0,0.36591376]
[1748640519467,0.20041983,104780.0,104770.0,0.37257311]
[1748640520608,0.20041983,104780.0,104770.0,0.37257408]
[1748640520891,0.20041983,104780.0,104770.0,0.36591376]
[1748640521103,0.20041983,104780.0,104770.0,0.37257409]
[1748640521312,0.20041983,104780.0,104770.0,0.55680809]
[1748640521524,0.20041983,104780.0,104770.0,0.56346984]
[1748640522593,0.20041983,104780.0,104770.0,0.56347421]
[1748640523208,0.20041983,104780.0,104770.0,0.54830776]
[1748640523409,0.20041983,104780.0,104770.0,0.54164164]
[1748640523615,0.20041983,104780.0,104770.0,0.54831269]
[1748640523844,0.20041983,104780.0,104770.0,0.54164164]
[1748640524052,0.20041983,104780.0,104770.0,0.54831246]
[1748640524262,0.20041983,104780.0,104770.0,0.54831243]
[1748640524457,0.20041983,104780.0,104770.0,0.54831821]
[1748640524665,0.20041983,104780.0,104770.0,0.54831858]
[1748640524874,0.20041983,104780.0,104770.0,0.54831881]
[1748640525080,0.20041983,104780.0,104770.0,0.54831889]
[1748640525490,0.20041983,104780.0,104770.0,0.54833281]
[1748640526127,0.20041983,104780.0,104770.0,0.35743848]
[1748640526548,0.17752577,104780.0,104770.0,0.35743848]
[1748640526782,0.17752577,104780.0,104770.0,0.35743847]
[1748640527164,0.17752577,104780.0,104770.0,0.35743829]
[1748640527589,0.17752577,104780.0,104770.0,0.54833262]
[1748640527802,0.17752577,104780.0,104770.0,0.54833271]
[1748640528238,0.17752577,104780.0,104770.0,0.54164164]
[1748640528438,0.17752577,104780.0,104770.0,0.54833271]
[1748640529286,0.17752577,104780.0,104770.0,0.54833272]
[1748640529691,0.17752577,104780.0,104770.0,0.54833278]
[1748640529900,0.17752577,104780.0,104770.0,0.54833279]
[1748640530094,0.17752577,104780.0,104770.0,0.35074731]
[1748640530322,0.17752577,104780.0,104770.0,0.54833292]
[1748640530744,0.17752577,104780.0,104770.0,0.54164164]
[1748640531598,0.17752577,104780.0,104770.0,0.54833294]
[1748640531861,0.17752577,104780.0,104770.0,0.54833295]
[1748640532184,0.17752577,104780.0,104770.0,0.54164164]
[1748640532803,0.17752577,104780.0,104770.0,0.54833295]
[1748640533219,0.17752577,104780.0,104770.0,0.54164164]
[1748640533428,0.17752577,104780.0,104770.0,0.55787775]
[1748640533641,0.17752577,104780.0,104770.0,0.55118635]
[1748640533817,0.17752577,104780.0,104770.0,0.55787775]
[1748640534027,0.17752577,104780.0,104770.0,0.55118635]
[1748640534849,0.17752577,104780.0,104770.0,0.55787787]
[1748640535047,0.17752577,104780.0,104770.0,0.55118635]
[1748640535679,0.17752577,104780.0,104770.0,0.55787785]
[1748640535885,0.17752577,104780.0,104770.0,0.55118635]
[1748640537176,0.17752577,104780.0,104770.0,0.55787797]
[1748640537378,0.17752577,104780.0,104770.0,0.55787793]
[1748640537584,0.20922577,104780.0,104770.0,0.56073088]
[1748640537793,0.20922577,104780.0,104770.0,0.56742227]
[1748640538000,0.20922577,104780.0,104770.0,0.56742221]
[1748640538202,0.20922577,104780.0,104770.0,0.56742218]
[1748640538406,0.20922577,104780.0,104770.0,0.56073088]
[1748640539430,0.1748853,104780.0,104770.0,0.59108806]
[1748640539641,0.1748853,104780.0,104770.0,0.59777939]
[1748640539849,0.1748853,104780.0,104770.0,0.56073088]
[1748640540055,0.1748853,104780.0,104770.0,0.5674221]
[1748640540266,0.1748853,104780.0,104770.0,0.66612944]
[1748640540472,0.1748853,104780.0,104770.0,0.66612962]
[1748640540683,0.1748853,104780.0,104770.0,0.67567388]
[1748640541116,0.1748853,104780.0,104770.0,0.68236481]
[1748640541540,0.1748853,104780.0,104770.0,0.71272199]
[1748640541744,0.15199218,104780.0,104770.0,0.71272199]
[1748640541949,0.15199218,104780.0,104770.0,0.70603106]
[1748640542159,0.15199218,104780.0,104770.0,0.67567388]
[1748640542360,0.15199218,104780.0,104770.0,0.682365]
[1748640542563,0.15199218,104780.0,104770.0,0.67567388]
[1748640544130,0.15199218,104780.0,104770.0,0.68236492]
[1748640544332,0.15199218,104780.0,104770.0,0.67567388]
[1748640544757,0.15199218,104780.0,104770.0,0.68236491]
[1748640544986,0.17107933,104780.0,104770.0,0.67567388]
[1748640545193,0.25120707,104780.0,104770.0,0.68236492]
[1748640545479,0.25120707,104780.0,104770.0,0.67567388]
[1748640545892,0.25120707,104780.0,104770.0,0.68236371]
[1748640546245,0.25120707,104780.0,104770.0,0.67567388]
[1748640547098,0.25120707,104780.0,104770.0,0.66612962]
[1748640547664,0.25120707,104780.0,104770.0,0.67567388]
[1748640548492,0.25120707,104780.0,104770.0,0.6823639]
[1748640548695,0.25120707,104780.0,104770.0,0.68236394]
[1748640549512,0.25120707,104780.0,104770.0,0.68236552]
[1748640549719,0.25120707,104780.0,104770.0,0.69190989]
[1748640549924,0.25120707,104780.0,104770.0,0.69191004]
[1748640550127,0.06033095,104780.0,104770.0,0.68521741]
[1748640550330,0.06033095,104780.0,104770.0,0.69190941]